{"text_format":"1","workbook":"xlsx","n_sheets":5,"sheets":["Partnership Terms","Contact & Organizational Info","Green Power Information","Profile","Control"],"not_rendered":{"charts":0,"images":4,"macros":1,"external_links":0,"defined_names":43,"comments":2,"pivot_tables":0},"unopened":[],"bounds":{"document_bytes":16777216,"sheet_cells":100000,"rows_first":2000,"rows_last":500,"rows_between":2000,"halvings":0,"cell_chars":16384,"cell_head_chars":4096},"cells_cut":0,"cells_raw":0,"read":"whole","date_system":"1900"}

{"sheet":"Partnership Terms","index":0,"n_rows":26,"n_cols":3,"rows_kept":26,"cut":false,"hidden":true,"merged":[[26,1,26,2],[17,1,17,2],[18,1,18,2],[19,1,19,2],[20,0,20,2],[22,0,22,2],[24,1,24,2],[10,1,10,2],[11,1,11,2],[12,1,12,2],[25,1,25,2],[13,0,13,2],[14,1,14,2],[15,1,15,2],[16,1,16,2],[7,1,7,2],[8,0,8,2],[9,1,9,2],[5,1,5,2],[0,0,0,2],[1,0,1,2],[2,1,2,2],[3,0,3,2],[4,1,4,2]]}
[]
["The U.S. EPA's Green Power Partnership encourages the voluntary use of green power to reduce the risk of climate change. Partners benefit from the use of green power, while supporting the development of new, renewable energy in the United States."]
[]
["By joining EPA's Green Power Partnership, Partners commit to:"]
["•","Use green power that meets or exceeds Partnership requirements."]
["•","Report on green power use annually."]
["•","Use the Green Power Mark in a manner that is consistent with","Partner mark use guidelines."]
[]
["In return, EPA commits to:"]
["•","Provide public recognition."]
["•","Provide procurement and communications assistance, as requested by Partner."]
["•","Provide a brief description of the Partner's green power commitment on the Green Power Partnership Web site."]
[]
["General Terms:"]
["•","Either party can terminate this agreement at any time without prior notification or penalties and with no further obligation. EPA will not comment publicly regarding the withdrawal of Partners."]
["•","Partner agrees that the activities it undertakes connected with this voluntary agreement are not intended to provide services to the federal government and that the Partner will not seek compensation from a federal agency."]
["•","Partner agrees that it will not claim or imply that its participation in the Green Power Partnership constitutes EPA approval or endorsement of anything other than its participation in the program and will not make statements or imply that EPA endorses the purchase or sale of the Partner’s products and services or the views of the Partner organization."]
["•","EPA may post information about the Partner’s green power use publicly."]
["•","EPA may periodically revise program benchmark levels or other eligibility requirements."]
[]
["For more information on partnership requirements (including minimum green power use and eligible green power sources) go to:"]
["https://www.epa.gov/greenpower/steps-join-green-power-partnership"]
[]
[null,"Name of individual agreeing to the terms:"]
[]
[null,"     I understand and agree to the above requirements to become an EPA Green Power Partner."]

{"sheet":"Contact & Organizational Info","index":1,"n_rows":35,"n_cols":3,"rows_kept":35,"cut":false,"hidden":false,"merged":[[19,0,19,2],[24,0,24,2],[22,1,22,2],[20,0,20,2],[21,1,21,2],[0,0,0,2],[17,1,17,2],[18,1,18,2],[4,0,4,2],[1,0,1,2],[2,0,2,2],[14,0,14,2],[13,0,13,2],[3,0,3,2],[15,1,15,2],[16,1,16,2],[37,1,37,2],[23,1,23,2],[26,1,26,2],[27,1,27,2],[25,0,25,2],[34,1,34,2],[29,0,29,2]]}
[]
["Green Power Partnership Yearly Reporting Form"]
["This Yearly Report form contains the information EPA currently has on your organization. Please make changes or updates, save the file, and return to your account manager, Anthony Amato, at your earliest convenience. Anthony Amato's email address is anthony.amato@erg.com."]
["All fields are required unless noted otherwise."]
["Contact Information"]
[null,"Primary Contact","Public Relations Contact (Optional)"]
["Salutation","Ms.","Ms."]
["Contact Name","Morgan White","Morgan White"]
["Title","Associate Director of Facilities & Services, Sustainability","Associate Director of Facilities & Services, Sustainability"]
["Street Address","1501 S. Oak Street","1501 S. Oak Street"]
["City/State/Zip","Champaign, IL  61820","Champaign, IL  61820"]
["Email Address","mbwhite@illinois.edu","mbwhite@illinois.edu"]
["Phone Number","(217) 333-2668","(217) 333-2668"]
[]
["Organizational Information"]
["Partner Name","University of Illinois at Urbana-Champaign"]
["Website Link ","http://illinois.edu/index.html"]
["Green Power Related Web Page\n(e.g. environmental or sustainability page)\nOptional","http://www.fs.illinois.edu/services/utilities-energy/production/renewable-energy"]
["Industry (select from picklist)","Education (Higher)"]
[]
["Organizational Electricity Use"]
["Annual Electricity Use (kWh/yr)",437398289]
["Scope of Reported Electricity Use (select from picklist)","Single facility or subset of U.S. facilties (please specify in the cell below)"]
["Please Identify Reporting Facility or Group of Facilities (only if \"Single Facility or Subset\" is selected above)","This includes all the facilities on the main Urbana campus.  It excludes locations that are located elsewhere in Illinois, such as the Extension offices in each Illinois county."]
[]
["Reporting Period: The electricity and green power information contained in this report covers the following 12-month period. Partners may choose to report most recent calendar year, fiscal year, other 12-month period, or forward-looking data."]
["Reporting Period Start Date ","2018-07-01"]
["Reporting Period End Date ","2019-06-30"]
[]
["Motivating Factors (Optional): Check the motivating factors behind you green power use (check all that apply)"]
[]
[]
[]
[]
["(If other, please specify):"]

{"sheet":"Green Power Information","index":2,"n_rows":121,"n_cols":16,"rows_kept":121,"cut":false,"hidden":false,"merged":[[94,9,94,10],[111,13,111,14],[112,13,112,14],[113,13,113,14],[114,13,114,14],[115,13,115,14],[116,13,116,14],[102,13,102,14],[103,13,103,14],[104,13,104,14],[105,13,105,14],[106,13,106,14],[107,13,107,14],[108,13,108,14],[109,13,109,14],[110,13,110,14],[98,7,98,8],[98,9,98,10],[108,9,108,10],[107,7,107,8],[101,5,101,6],[91,13,91,14],[92,13,92,14],[93,13,93,14],[94,13,94,14],[95,13,95,14],[96,13,96,14],[97,13,97,14],[98,13,98,14],[92,7,92,8],[92,9,92,10],[95,7,95,8],[95,9,95,10],[99,13,99,14],[100,13,100,14],[101,13,101,14],[93,7,93,8],[93,9,93,10],[94,5,94,6],[94,7,94,8],[116,9,116,10],[111,7,111,8],[112,7,112,8],[113,7,113,8],[114,7,114,8],[115,7,115,8],[116,7,116,8],[115,9,115,10],[113,9,113,10],[114,9,114,10],[111,9,111,10],[95,3,95,4],[95,5,95,6],[99,5,99,6],[99,7,99,8],[99,9,99,10],[96,3,96,4],[1,0,1,5],[91,3,91,4],[2,1,2,11],[3,1,3,9],[91,5,91,6],[5,3,5,10],[91,7,91,8],[4,0,4,15],[89,0,89,12],[90,9,90,12],[91,9,91,10],[94,3,94,4],[97,3,97,4],[97,5,97,6],[97,7,97,8],[97,9,97,10],[98,3,98,4],[98,5,98,6],[105,5,105,6],[103,7,103,8],[103,9,103,10],[104,3,104,4],[104,5,104,6],[104,7,104,8],[104,9,104,10],[105,3,105,4],[99,3,99,4],[100,3,100,4],[100,5,100,6],[100,7,100,8],[100,9,100,10],[105,7,105,8],[105,9,105,10],[113,5,113,6],[114,3,114,4],[93,3,93,4],[93,5,93,6],[96,5,96,6],[96,7,96,8],[96,9,96,10],[109,9,109,10],[110,9,110,10],[101,7,101,8],[101,9,101,10],[102,3,102,4],[102,5,102,6],[102,7,102,8],[102,9,102,10],[103,3,103,4],[103,5,103,6],[107,5,107,6],[107,3,107,4],[107,9,107,10],[106,3,106,4],[106,5,106,6],[106,7,106,8],[106,9,106,10],[108,5,108,6],[112,9,112,10],[108,7,108,8],[101,3,101,4],[0,0,0,15],[116,3,116,4],[116,5,116,6],[115,5,115,6],[112,3,112,4],[112,5,112,6],[115,3,115,4],[114,5,114,6],[113,3,113,4],[109,7,109,8],[110,7,110,8],[110,3,110,4],[108,3,108,4],[111,5,111,6],[111,3,111,4],[109,3,109,4],[110,5,110,6],[109,5,109,6],[92,3,92,4],[92,5,92,6]]}
["Green Power Information"]
["Select the appropriate check box(es) below:",null,null,null,null,null,null,null,null,null,null,null,null,null,null,"Yes"]
[null,"We are purchasing green power or renewable energy certificates (RECs) from a provider.",null,null,null,null,null,null,null,null,null,null,null,null,null,"No"]
[null,"We are producing green power onsite."]
["Please update the information below with your current green power product purchase information. If you are purchasing more than one green power product or REC product, list each purchase on a separate row."]
[null,null,null,"Product's Resource Mix (should total 100%)"]
["Green Power Provider(s)\nOne provider per row","Product Name\nOptional","Green Power Purchase* (kWh/year)","Bio-\ngas\n(%)","Bio-mass (%)","Geo-\nthermal (%)","Hydro (%)","Solar (%)","Wind (%)","Unknown (%)","Total (%)","3rd Party Certified?","Contract Begin Date (mm/dd/yy)","Contract End Date (mm/dd/yy)","Is this provider also supplying your electricity?","Purchase Note\nOptional"]
["Rail Splitter Wind Farm, LLC","Unknown",24726000,null,null,null,null,null,100,null,{"$f":"D8+E8+F8+G8+H8+I8+J8","v":100},"Other Certification","2016-09-01","2026-08-30","Yes","Achieved commercial operation in September 2009"]
[null,null,null,null,null,null,null,null,null,null,{"$f":"D9+E9+F9+G9+H9+I9+J9","v":0}]
[null,null,null,null,null,null,null,null,null,null,{"$f":"D10+E10+F10+G10+H10+I10+J10","v":0}]
[null,null,null,null,null,null,null,null,null,null,0]
[null,null,null,null,null,null,null,null,null,null,0]
[null,null,null,null,null,null,null,null,null,null,0]
[null,null,null,null,null,null,null,null,null,null,0]
[null,null,null,null,null,null,null,null,null,null,0]
[null,null,null,null,null,null,null,null,null,null,0]
[null,null,null,null,null,null,null,null,null,null,0]
[null,null,null,null,null,null,null,null,null,null,0]
[null,null,null,null,null,null,null,null,null,null,0]
[null,null,null,null,null,null,null,null,null,null,0]
[null,null,null,null,null,null,null,null,null,null,0]
[null,null,null,null,null,null,null,null,null,null,0]
[null,null,null,null,null,null,null,null,null,null,0]
[null,null,null,null,null,null,null,null,null,null,0]
[null,null,null,null,null,null,null,null,null,null,0]
[null,null,null,null,null,null,null,null,null,null,0]
[null,null,null,null,null,null,null,null,null,null,0]
[null,null,null,null,null,null,null,null,null,null,0]
[null,null,null,null,null,null,null,null,null,null,0]
[null,null,null,null,null,null,null,null,null,null,0]
[null,null,null,null,null,null,null,null,null,null,0]
[null,null,null,null,null,null,null,null,null,null,{"$f":"D32+E32+F32+G32+H32+I32+J32","v":0}]
[null,null,null,null,null,null,null,null,null,null,0]
[null,null,null,null,null,null,null,null,null,null,0]
[null,null,null,null,null,null,null,null,null,null,0]
[null,null,null,null,null,null,null,null,null,null,0]
[null,null,null,null,null,null,null,null,null,null,0]
[null,null,null,null,null,null,null,null,null,null,0]
[null,null,null,null,null,null,null,null,null,null,0]
[null,null,null,null,null,null,null,null,null,null,0]
[null,null,null,null,null,null,null,null,null,null,{"$f":"D41+E41+F41+G41+H41+I41+J41","v":0}]
[null,null,null,null,null,null,null,null,null,null,0]
[null,null,null,null,null,null,null,null,null,null,0]
[null,null,null,null,null,null,null,null,null,null,0]
[null,null,null,null,null,null,null,null,null,null,0]
[null,null,null,null,null,null,null,null,null,null,0]
[null,null,null,null,null,null,null,null,null,null,0]
[null,null,null,null,null,null,null,null,null,null,0]
[null,null,null,null,null,null,null,null,null,null,0]
[null,null,null,null,null,null,null,null,null,null,0]
[null,null,null,null,null,null,null,null,null,null,0]
[null,null,null,null,null,null,null,null,null,null,0]
[null,null,null,null,null,null,null,null,null,null,0]
[null,null,null,null,null,null,null,null,null,null,0]
[null,null,null,null,null,null,null,null,null,null,0]
[null,null,null,null,null,null,null,null,null,null,0]
[null,null,null,null,null,null,null,null,null,null,0]
[null,null,null,null,null,null,null,null,null,null,0]
[null,null,null,null,null,null,null,null,null,null,{"$f":"D59+E59+F59+G59+H59+I59+J59","v":0}]
[null,null,null,null,null,null,null,null,null,null,0]
[null,null,null,null,null,null,null,null,null,null,0]
[null,null,null,null,null,null,null,null,null,null,0]
[null,null,null,null,null,null,null,null,null,null,0]
[null,null,null,null,null,null,null,null,null,null,0]
[null,null,null,null,null,null,null,null,null,null,0]
[null,null,null,null,null,null,null,null,null,null,0]
[null,null,null,null,null,null,null,null,null,null,0]
[null,null,null,null,null,null,null,null,null,null,0]
[null,null,null,null,null,null,null,null,null,null,{"$f":"D69+E69+F69+G69+H69+I69+J69","v":0}]
[null,null,null,null,null,null,null,null,null,null,0]
[null,null,null,null,null,null,null,null,null,null,0]
[null,null,null,null,null,null,null,null,null,null,0]
[null,null,null,null,null,null,null,null,null,null,0]
[null,null,null,null,null,null,null,null,null,null,0]
[null,null,null,null,null,null,null,null,null,null,0]
[null,null,null,null,null,null,null,null,null,null,0]
[null,null,null,null,null,null,null,null,null,null,0]
[null,null,null,null,null,null,null,null,null,null,{"$f":"D78+E78+F78+G78+H78+I78+J78","v":0}]
[null,null,null,null,null,null,null,null,null,null,0]
[null,null,null,null,null,null,null,null,null,null,0]
[null,null,null,null,null,null,null,null,null,null,0]
[null,null,null,null,null,null,null,null,null,null,0]
[null,null,null,null,null,null,null,null,null,null,0]
[null,null,null,null,null,null,null,null,null,null,0]
[null,null,null,null,null,null,null,null,null,null,0]
[null,null,null,null,null,null,null,null,null,null,0]
[null,null,null,null,null,null,null,null,null,null,0]
[null,"Total:",{"$f":"SUM(C8:C87)","v":24726000},null,"* Green power can only be sourced from \"new\" renewable facilities (i.e., installed within the last 15 years)."]
[]
["Please update the information below with your current onsite green power production information. If you use more than one onsite generation type, list each onsite resource type on a separate row."]
[null,null,null,null,null,null,null,null,null,"Only Complete If You Do Not Own System"]
["Onsite Generation Technology\nOne onsite system per row","Green Power Production (kWh/year)","Rated Capacity (kW) Optional","Year Installed",null,"Location\n(ZIP Code)\nOptional",null,"Do you own the system? Optional",null,"System Owner Optional",null,"Power Purchase Agreement Start Date (mm/dd/yy)","Power Purchase Agreement End Date (mm/dd/yy)","Project Note\nOptional"]
["Solar",21007,15,2013,null,"61820",null,"Yes",null,null,null,null,null,"BRC installation"]
["Solar",40387,33,2008,null,"61820",null,"Yes",null,null,null,null,null,"BIF Rooftop"]
["Solar",7014940,5870,2016,null,"61820",null,"No",null,"Phoenix Solar LLC",null,"2015-12-11","2025-12-10","Solar Farm 1.0"]
["Solar",40878,33,2016,null,"61820",null,"Yes",null,null,null,null,null,"Wassaja Hall rooftop"]
["Solar",0,272,"2019",null,"61801",null,"Yes",null,null,null,null,null,"ECE Rooftop went live in April FY19, but data collection started with FY20"]
[]
[]
[]
[]
[]
[]
[]
[]
[]
[]
[]
[]
[]
[]
[]
[]
[]
[]
[]
[]
["Total:",{"$f":"SUM(B93:B117)","v":7117212},"* EPA will only count as green power the kWh output from on-site installations for which the Green Power Partner owns the rights to the renewable energy certificates (RECs)."]
[]
["Total Green Power",{"$f":"C88+B118","v":31843212}]
["Percent Green Power",{"$f":"IF(Electric_Load>0,(C88+B118)/Electric_Load,0)","v":7.280140960953782E-2}]

{"sheet":"Profile","index":3,"n_rows":10,"n_cols":2,"rows_kept":10,"cut":false,"hidden":false,"merged":[[0,0,0,1],[2,0,2,1],[1,0,1,1],[3,0,3,1]]}
["Partner Profile (Optional)"]
["All Green Power Partners have the opportunity to have a Partner Profile on the Partnership's Web site. The Partner Profile is a short paragraph (200 word limit) that briefly describes a Partner’s organization, its decision to use green power, its experience to date with green power, and may include a quote about the benefits of green power to the organization. (Please include the name and title of the person the quote is attributed to.) You may revise your existing Partner Profile below."]
["Current Profile for Your Organization: "]
["The University of Illinois at Urbana-Champaign is proud of its sustainability initiatives, as documented in the Illinois Climate Action Plan. One of the most important and challenging initiatives is a shift from conventional energy to the use of renewable energy. Various renewable energy projects have been implemented since signing the Climate Leadership Commitments. The first project was a 32.76 kilowatt (kW) solar photovoltaic (PV) array on the roof of the Business Instructional Facility in 2009. The 14.7 kW PV array, ground mounted at the Building Research Council, is a research platform for the Information Trust Institute. Solar thermal panels on the Activities and Recreation Center roof heat the indoor and outdoor swimming pools. In April 2014, campus purchased 20,000 renewable energy certificates (RECs) from Midwest Independent Systems Operators (MISO) wind power for fiscal year 2015. The most significant on-campus renewable energy generation project went into commercial operation in December 2015, with the completion of the 4.86 megawatt (MW) Solar Farm. The Solar Farm produces approximately 7,300 MWh/year, and it is expected to generate up to 91% of its original output even in Year 20 of the project. Campus is monitoring the efficiency of the Solar Farm, compared to the design specifications, and in February 2016 the Solar Farm produced 100.2% of the anticipated electricity for that month. In December 2015 another solar array was installed on the new Wassaja Residence Hall roof with a capacity of 30 kW.  In September 2016 campus signed a ten-year Wind Power Purchase Agreement for 25 million kWh/year.  In June 2017, campus installed a 200 kW biomass boiler at the Energy Farm, using Miscanthus grown on site.  Additional rooftop solar installations are funded and expected to be installed during FY19."]
["You can find your current profile at:","https://www.epa.gov/greenpower/green-power-partner-list#UniversityofIllinoisatUrbanaChampaign"]
[]
[]
[]
[]
[null,"Note: The \"Save & Exit\" button above will only work if you've enabled macros. If you have not enabled macros, simply save the file as you would any other Excel file."]

{"sheet":"Control","index":4,"n_rows":47,"n_cols":7,"rows_kept":47,"cut":false,"hidden":true,"merged":[]}
["Report Deployed:",true]
["Report Created On:","2018-07-09"]
["Report Created By:","anthony.amato@erg.com"]
["Report Opened On:","2018-07-27"]
["Report Type:","Partner"]
[]
["Salutation","Picklist for Industry","Scope of Use Options","Calendar Options","3rd party ownership","Picklist for Certification","Picklist for Onsite"]
["Mr.","Ag. & Nat. Resources","All owned and/or leased U.S. facilities","Fiscal Year","No","Not Certified","Biogas (Landfill Gas)"]
["Mrs.","Architecture Srvcs.","Single facility or subset of U.S. facilties (please specify in the cell below)","Calendar Year","Yes","Green-e","Biogas (Wastewater Methane)"]
["Ms.","Automotive",null,null,"Mixed","Clean-e","Biomass"]
[null,"Banking & Fin. Srvcs.",null,null,"Not Sure","CRT","Geothermal"]
[null,"Chemical",null,null,null,"EcoLogo/ TerraChoice","Small Hydro"]
[null,"Clothing & Textile",null,null,null,"Other Certification","Solar"]
[null,"Constr. & Eng. Srvcs.",null,null,null,null,"Wind"]
[null,"Consulting Srvcs."]
[null,"Consumer Products"]
[null,"Education (Higher)"]
[null,"Education (K-12)"]
[null,"Educational (Other)"]
[null,"Energy Services"]
[null,"Food & Beverage"]
[null,"Govt. (Federal)"]
[null,"Govt. (Local, Municipal)"]
[null,"Govt. (State)"]
[null,"Green Power Community"]
[null,"Health Care"]
[null,"Hotels & Lodging"]
[null,"Industrial Goods & Srvcs."]
[null,"Insurance"]
[null,"Legal Services"]
[null,"Marketing, Advtg & PR"]
[null,"Media & Publishing"]
[null,"Museums, Parks & Zoos"]
[null,"Non-Profit (NGO)"]
[null,"Other"]
[null,"Printing & Packaging"]
[null,"Real Estate"]
[null,"Recreation"]
[null,"Religious"]
[null,"Restaurants & Cafes"]
[null,"Retail"]
[null,"Shipping"]
[null,"Sports Teams & Venues"]
[null,"Technology & Telecom"]
[null,"Transportation"]
[null,"Tribal Nations"]
[null,"Wineries & Breweries"]